Workbook

Sheet Chi-sq
C1: Source: | D1: https://www.youtube.com/watch?v=dgjHsv8FBYU
D2: Pearson chi-square test of independence
D3: example
D5: Observed | E5: Male | F5: Female | G5: Total
D6: Married | E6: 456 | F6: 516 | G6: =SUM(E6:F6) -> 972
D7: Widowed | E7: 58 | F7: 123 | G7: =SUM(E7:F7) -> 181
D8: Divorced | E8: 142 | F8: 172 | G8: 314
D9: Separated | E9: 29 | F9: 50 | G9: 79
D10: Never married | E10: 188 | F10: 207 | G10: 395
D11: Total | E11: =SUM(E6:E10) -> 873 | F11: =SUM(F6:F10) -> 1068 | G11: 1941
D13: Expected | E13: =E5 -> Male | F13: =F5 -> Female
D14: =D6 -> Married | E14: =$G6*E$11/$G$11 -> 437.1746522 | F14: =$G6*F$11/$G$11 -> 534.8253478
D15: Widowed | E15: =$G7*E$11/$G$11 -> 81.40803709 | F15: 99.59196291
D16: Divorced | E16: =$G8*E$11/$G$11 -> 141.2272025 | F16: =$G8*F$11/$G$11 -> 172.7727975
D17: Separated | E17: =$G9*E$11/$G$11 -> 35.5316847 | F17: 43.4683153
D18: Never married | E18: =$G10*E$11/$G$11 -> 177.6584235 | F18: 217.3415765
A21: UDF | B21: =PearsonInd($E$6:$F$10,3) -> 0 | D21: Percentage of cells with expected count less than 5: | I21: =COUNTIF(E14:F18,"<5")/COUNT(E14:F18) -> 0
A22: UDF | B22: =PearsonInd($E$6:$F$10,4) -> 35.5316847 | D22: Minimum expected count: | I22: =MIN(E14:F18) -> 35.5316847
D24: Significance | E24: =_xlfn.CHISQ.TEST(E6:F10,E14:F18) -> 0.001941833949
D26: (O-E)2/E | E26: =E5 -> Male | F26: =F5 -> Female
D27: =D6 -> Married | E27: =(E6-E14)^2/E14 -> 0.8106456228 | F27: =(F6-F14)^2/F14 -> 0.6626344838
D28: Widowed | E28: =(E7-E15)^2/E15 -> 6.730738391 | F28: 5.501811438
D29: Divorced | E29: =(E8-E16)^2/E16 -> 0.004228760517 | F29: 0.003456655367
D30: Separated | E30: =(E9-E17)^2/E17 -> 1.200700315 | F30: 0.9814713247
D31: Never married | E31: =(E10-E18)^2/E18 -> 0.6019878064 | F31: 0.4920743024
A33: UDF | B33: =PearsonInd($E$6:$F$10,1) -> 16.9897491 | D33: Pearson Chi-square value: | G33: =SUM(E27:F31) -> 16.9897491
A35: UDF | B35: =PearsonInd($E$6:$F$10,2) -> 4 | D35: Degrees of freedom: | G35: =(COUNT(E27:E31)-1)*(COUNT(E27:F27)-1) -> 4
A37: UDF | B37: =PearsonInd($E$6:$F$10,0) -> 0.001941833949 | D37: significance: | G37: =CHIDIST(G33,G35) -> 0.001941833949 | H37: =_xlfn.CHISQ.DIST.RT(G33,G35) -> 0.001941833949

Sheet Cramer's V
C1: Source: | D1: https://www.youtube.com/watch?v=dgjHsv8FBYU
D2: Pearson chi-square test of independence
D3: example
D4: https://www.youtube.com/watch?v=YXe51-N9xjM
D5: Observed | E5: Male | F5: Female | G5: Total
D6: Married | E6: 456 | F6: 516 | G6: =SUM(E6:F6) -> 972
D7: Widowed | E7: 58 | F7: 123 | G7: =SUM(E7:F7) -> 181
D8: Divorced | E8: 142 | F8: 172 | G8: 314
D9: Separated | E9: 29 | F9: 50 | G9: 79
D10: Never married | E10: 188 | F10: 207 | G10: 395
D11: Total | E11: =SUM(E6:E10) -> 873 | F11: =SUM(F6:F10) -> 1068 | G11: 1941
D13: Pearson Chi-square value: | G13: ='Chi-sq'!G33 -> 16.9897491
E14: # of rows (r) | G14: =COUNT(E6:E10) -> 5
E15: # of cols (c) | G15: =COUNT(E6:F6) -> 2
E16: q | G16: =MIN(G14,G15) -> 2
E18: Cramer's V | G18: =SQRT(G13/(G11*(G16-1))) -> 0.09355795384

Sheet Bonniferoni'sTest
C1: Source: | D1: https://www.youtube.com/watch?time_continue=6&v=FrKvSWV1A-Y
D2: Pearson chi-square test of independence
D3: example
D5: Observed | E5: Male | F5: Female | G5: Total
D6: Married | E6: 456 | F6: 516 | G6: =SUM(E6:F6) -> 972
D7: Widowed | E7: 58 | F7: 123 | G7: =SUM(E7:F7) -> 181
D8: Divorced | E8: 142 | F8: 172 | G8: 314
D9: Separated | E9: 29 | F9: 50 | G9: 79
D10: Never married | E10: 188 | F10: 207 | G10: 395
D11: Total | E11: =SUM(E6:E10) -> 873 | F11: =SUM(F6:F10) -> 1068 | G11: 1941
D13: Expected | E13: =E5 -> Male | F13: =F5 -> Female
D14: =D6 -> Married | E14: =$G6*E$11/$G$11 -> 437.1746522 | F14: =$G6*F$11/$G$11 -> 534.8253478
D15: Widowed | E15: =$G7*E$11/$G$11 -> 81.40803709 | F15: 99.59196291
D16: Divorced | E16: 141.2272025 | F16: =$G8*F$11/$G$11 -> 172.7727975
D17: Separated | E17: 35.5316847 | F17: 43.4683153
D18: Never married | E18: 177.6584235 | F18: 217.3415765
D21: Adjusted Residuals
D22: (O-E)2/E | E22: =E5 -> Male | F22: =F5 -> Female
D23: =D6 -> Married | E23: =(E6-E14)/SQRT((E14*(1-($G6/$G$11))*(1-(E$11/$G$11)))) -> 1.71788284 | F23: =(F6-F14)/SQRT((F14*(1-($G6/$G$11))*(1-(F$11/$G$11)))) -> -1.71788284
D24: Widowed | E24: =(E7-E15)/SQRT((E15*(1-($G7/$G$11))*(1-(E$11/$G$11)))) -> -3.672949275 | F24: 3.672949275
D25: Divorced | E25: =(E8-E16)/SQRT((E16*(1-($G8/$G$11))*(1-(E$11/$G$11)))) -> 0.0957530636 | F25: -0.0957530636
D26: Separated | E26: =(E9-E17)/SQRT((E17*(1-($G9/$G$11))*(1-(E$11/$G$11)))) -> -1.508229333 | F26: 1.508229333
D27: Never married | E27: =(E10-E18)/SQRT((E18*(1-($G10/$G$11))*(1-(E$11/$G$11)))) -> 1.172003778 | F27: -1.172003778
D30: Significance level | E30: 0.05
D31: # of tests | E31: =COUNT(E6:E10)*COUNT(E6:F6) -> 10
D32: Adjusted sig level | E32: =E30/E31 -> 0.005
D35: z-criteria | E35: =NORMSINV(E32/2) -> -2.807033768
